bitfinex/quotes_BTCUSD_20220205
["timestamp","ask_amount","ask_price","bid_price","bid_amount"]
[1644087629805,0.00069068,41676.0,41675.0,0.80395555]
[1644087630004,0.00069068,41676.0,41675.0,0.53766243]
[1644087630205,0.01945214,41687.0,41677.0,0.335166]
[1644087630404,0.01945214,41687.0,41685.0,0.20664281]
[1644087630609,0.01945214,41687.0,41686.0,0.335166]
[1644087630807,0.002762,41688.0,41686.0,0.48966243]
[1644087631011,0.002762,41688.0,41687.0,0.383166]
[1644087631208,0.002762,41688.0,41687.0,0.64650127]
[1644087631410,0.02038958,41689.0,41687.0,0.79650127]
[1644087631608,0.02038958,41689.0,41688.0,0.5952109]
[1644087631806,0.02038958,41689.0,41688.0,0.8432109]
[1644087632008,0.00023997,41690.0,41689.0,0.7]
[1644087632210,0.00023997,41690.0,41689.0,1.34636572]
[1644087632463,0.00023997,41690.0,41689.0,1.44636572]
[1644087632664,0.03,41702.0,41698.0,0.27733233]
[1644087632863,0.03,41702.0,41699.0,0.05249643]
[1644087633064,0.03,41702.0,41699.0,0.03533358]
[1644087633267,0.03,41702.0,41700.0,0.335166]
[1644087633565,0.001,41707.0,41701.0,0.33303495]
[1644087633764,0.001,41707.0,41702.0,0.385166]
[1644087633965,0.001,41707.0,41703.0,0.048]
[1644087634165,0.001,41707.0,41704.0,0.335166]
[1644087634365,0.001,41707.0,41705.0,0.5719014]
[1644087634568,0.001,41707.0,41706.0,0.635166]
[1644087634766,0.001,41707.0,41706.0,0.833166]
[1644087634965,0.001,41707.0,41706.0,0.533166]
[1644087635769,0.001,41707.0,41706.0,0.88183782]
[1644087637014,0.001,41707.0,41706.0,1.09104647]
[1644087637416,0.001,41707.0,41706.0,1.04304647]
[1644087640263,0.001,41707.0,41706.0,1.09104647]
[1644087641268,0.00066909,41709.0,41707.0,0.55]
[1644087641467,0.00066909,41709.0,41708.0,0.66040921]
[1644087641665,0.00066909,41709.0,41708.0,0.76040921]
[1644087641865,0.00066909,41709.0,41708.0,0.86040921]
[1644087642267,0.001,41715.0,41710.0,0.335166]
[1644087642567,0.001,41715.0,41711.0,0.048]
[1644087642766,0.001,41715.0,41711.0,0.098]
[1644087643617,0.00066903,41714.0,41711.0,0.098]
[1644087643812,0.00066903,41714.0,41712.0,0.335166]
[1644087644011,0.00066903,41714.0,41712.0,0.385166]
[1644087644211,0.00066903,41714.0,41712.0,0.485166]
[1644087644613,0.001,41715.0,41712.0,0.485166]
[1644087644914,0.00122133,41715.0,41712.0,0.485166]
[1644087645313,0.05,41714.0,41712.0,0.435166]
[1644087647213,0.05,41714.0,41712.0,0.1]
[1644087647454,0.05,41714.0,41708.0,0.48388689]
[1644087647655,0.08,41713.0,41709.0,0.335166]
[1644087647856,0.05,41710.0,41709.0,0.435166]
[1644087650457,0.05068096,41712.0,41709.0,0.435166]
[1644087650661,0.03,41713.0,41709.0,0.435166]
[1644087650859,0.00068096,41712.0,41709.0,0.435166]
[1644087651508,0.05,41710.0,41709.0,0.435166]
[1644087652111,0.05,41710.0,41697.0,0.35447603]
[1644087652311,0.05,41703.0,41697.0,0.01878464]
[1644087652610,0.05,41703.0,41698.0,0.335166]
[1644087652816,0.05,41703.0,41700.0,0.2539661]
[1644087653012,0.05,41703.0,41701.0,0.37122294]
[1644087653212,0.05067117,41703.0,41701.0,0.37122294]
[1644087653615,0.05067117,41703.0,41702.0,0.335166]
[1644087654011,0.05067117,41703.0,41702.0,0.435166]
[1644087654211,0.05,41703.0,41702.0,0.335166]
[1644087654411,0.05,41703.0,41702.0,0.485166]
[1644087654853,0.05,41703.0,41702.0,0.15]
[1644087655253,0.05,41703.0,41702.0,0.1]
[1644087655455,0.05,41703.0,41695.0,0.35397591]
[1644087655654,0.05,41703.0,41696.0,0.335166]
[1644087655853,0.29267448,41703.0,41697.0,0.22997802]
[1644087656054,0.29267448,41703.0,41698.0,0.335166]
[1644087656259,0.05,41703.0,41700.0,0.30076054]
[1644087656654,0.05,41703.0,41700.0,0.40076054]
[1644087657358,0.049247,41702.0,41700.0,0.1]
[1644087657657,0.13139881,41703.0,41687.0,0.02056384]
[1644087657658,0.39499702,41701.0,41687.0,0.02056384]
[1644087657857,0.40529702,41701.0,41687.0,0.02056384]
[1644087658055,0.05,41688.0,41687.0,0.02056384]
[1644087658262,0.05,41688.0,41687.0,0.31939765]
[1644087658913,0.05,41688.0,41687.0,0.29883381]
[1644087659910,0.05,41688.0,41687.0,0.63399981]
[1644087660513,0.00067138,41690.0,41687.0,0.89729228]
[1644087660813,0.00067138,41690.0,41688.0,0.335166]
[1644087661012,0.00067138,41690.0,41688.0,0.385166]
[1644087661215,0.00067138,41690.0,41689.0,0.335166]
[1644087661419,0.05,41692.0,41689.0,0.1]
[1644087661614,0.00067136,41691.0,41689.0,0.1]
[1644087662217,0.00067136,41691.0,41690.0,0.335166]
[1644087662454,0.00067136,41691.0,41690.0,0.435166]
[1644087662654,0.05,41695.0,41690.0,0.435166]
[1644087662856,0.00067135,41693.0,41690.0,0.1]
[1644087663756,0.00067135,41693.0,41688.0,0.05]
[1644087663757,0.05,41695.0,41687.0,0.10027539]
[1644087663964,0.05,41693.0,41687.0,0.335166]
[1644087664158,0.05,41693.0,41686.0,0.00027539]
[1644087664458,0.00067134,41694.0,41685.0,0.39324956]
[1644087664660,0.00067134,41694.0,41687.0,0.02086698]
[1644087664860,0.00067134,41694.0,41689.0,0.34770151]
[1644087665060,0.27642095,41695.0,41689.0,0.34770151]
[1644087665261,0.05,41692.0,41689.0,0.44770151]
[1644087668108,0.05,41692.0,41690.0,0.2513285]
[1644087668309,0.00067135,41693.0,41690.0,0.5864945]
[1644087668709,0.03410696,41700.0,41690.0,0.6864945]
[1644087668909,0.00067134,41694.0,41690.0,0.6864945]
[1644087669955,0.22187853,41701.0,41697.0,0.36017468]
[1644087670156,0.00268494,41700.0,41697.0,0.36017468]
[1644087670357,0.00268494,41700.0,41697.0,0.46017468]
[1644087670556,0.00268494,41700.0,41698.0,0.335166]
[1644087670759,0.00268494,41700.0,41699.0,0.25182012]
[1644087670956,0.05,41709.0,41699.0,0.63698612]
[1644087671157,0.05,41709.0,41707.0,0.22589145]
[1644087671357,0.05,41709.0,41707.0,0.37605919]
[1644087671358,0.00268461,41708.0,41707.0,0.37605919]
[1644087671956,0.00268461,41708.0,41701.0,0.335166]
[1644087672156,0.00268461,41708.0,41702.0,0.2496475]
[1644087672356,0.05,41709.0,41705.0,0.20317949]
[1644087672557,0.0006712,41707.0,41706.0,0.335166]
[1644087672758,0.0006712,41707.0,41706.0,0.435166]
[1644087673157,0.0006712,41707.0,41706.0,0.1]
[1644087673356,0.05,41709.0,41706.0,0.1]
[1644087673808,0.05067168,41709.0,41706.0,0.1]
[1644087674007,0.05067168,41709.0,41705.0,0.20317949]
[1644087674607,0.05,41709.0,41705.0,0.20317949]
[1644087675009,0.05067168,41709.0,41705.0,0.20317949]
[1644087675510,0.00067168,41709.0,41705.0,0.20317949]
[1644087675709,0.05,41706.0,41705.0,0.20317949]
[1644087677461,0.00067152,41708.0,41705.0,0.79707575]
[1644087677662,0.00067152,41708.0,41707.0,0.335166]
[1644087677861,0.00067152,41708.0,41707.0,0.435166]
[1644087678061,0.00067152,41708.0,41707.0,0.69272931]
[1644087678261,0.05,41711.0,41707.0,0.35756331]
[1644087678464,0.0006715,41710.0,41707.0,0.35756331]
[1644087678662,0.0006715,41710.0,41707.0,0.1]
[1644087679063,0.0006715,41710.0,41705.0,0.25317949]
[1644087679263,0.0006715,41710.0,41706.0,0.335166]
[1644087679463,0.23491841,41714.0,41707.0,0.24772967]
[1644087679668,0.0006715,41710.0,41707.0,0.24772967]
[1644087679863,0.0006715,41710.0,41705.0,0.25317949]
[1644087679864,0.0006715,41710.0,41705.0,0.35317949]
[1644087680262,0.0006715,41710.0,41706.0,0.335166]
[1644087680566,0.05,41711.0,41706.0,0.485166]
[1644087680764,0.05,41711.0,41707.0,0.58911977]
[1644087681122,0.00067152,41710.0,41708.0,0.05]
[1644087681314,0.00067152,41710.0,41709.0,0.58507518]
[1644087681716,0.00067152,41710.0,41709.0,0.68507518]
[1644087681915,0.05,41711.0,41709.0,0.68507518]
[1644087682515,0.05,41711.0,41709.0,0.34990918]
[1644087682715,0.05,41711.0,41709.0,0.24990918]
[1644087682916,0.05,41711.0,41709.0,0.34990918]
[1644087683817,0.05,41711.0,41709.0,0.24990918]
[1644087688714,0.07940482,41708.0,41698.0,0.0401992]
[1644087688912,0.07940482,41708.0,41698.0,0.01952486]
[1644087688913,0.05,41699.0,41698.0,0.01952486]
[1644087689113,0.07940482,41708.0,41698.0,0.01952486]
[1644087689314,0.0006966,41705.0,41698.0,0.01952486]
[1644087689713,0.23291092,41702.0,41698.0,0.01952486]
[1644087690016,0.049247,41701.0,41698.0,0.01952486]
[1644087690910,0.049247,41701.0,41696.0,0.25662987]
[1644087691112,0.02933212,41702.0,41696.0,0.25162987]
[1644087691511,0.02908918,41702.0,41696.0,0.25162987]
[1644087691711,0.00066997,41701.0,41696.0,0.25162987]
[1644087692566,0.02908918,41702.0,41696.0,0.25162987]
[1644087693062,0.00066998,41701.0,41696.0,0.25162987]
[1644087693962,0.02908918,41702.0,41696.0,0.25162987]
[1644087694163,0.00066998,41701.0,41696.0,0.25162987]
[1644087694363,0.00066998,41701.0,41697.0,0.25028859]
[1644087694762,0.00066998,41701.0,41696.0,0.3725795]
[1644087695167,0.02908918,41702.0,41696.0,0.3725795]
[1644087695464,0.00068102,41701.0,41696.0,0.3725795]
[1644087696313,0.02908918,41702.0,41696.0,0.3725795]
[1644087696514,0.00068102,41701.0,41696.0,0.3725795]
[1644087696913,0.00068102,41701.0,41696.0,0.60582258]
[1644087697113,0.00068102,41701.0,41696.0,0.50664618]
[1644087697312,0.00068102,41701.0,41696.0,0.60664618]
[1644087697513,0.02908918,41702.0,41696.0,0.60664618]
[1644087697718,0.00068102,41701.0,41696.0,0.59990298]
[1644087698716,0.02908918,41702.0,41696.0,0.59990298]
[1644087698916,0.00067099,41701.0,41696.0,0.59990298]
[1644087699959,0.02908918,41702.0,41696.0,0.59990298]
[1644087700160,0.00067099,41701.0,41696.0,0.35162987]
[1644087700363,0.00067099,41701.0,41696.0,0.50294993]
[1644087700560,0.00067099,41701.0,41696.0,0.60294993]
[1644087701160,0.02908918,41702.0,41696.0,0.60294993]
[1644087701365,0.00067099,41701.0,41696.0,0.35162987]
[1644087701560,0.00067099,41701.0,41696.0,0.60487289]
[1644087702361,0.02908918,41702.0,41696.0,0.35162987]
[1644087702562,0.00067167,41701.0,41696.0,0.35162987]
[1644087702968,0.00067167,41701.0,41696.0,0.25162987]
[1644087703164,0.00067167,41701.0,41696.0,0.35162987]
[1644087703809,0.6868303,41708.0,41696.0,0.35162987]
[1644087704109,0.049247,41707.0,41696.0,0.35162987]
[1644087704812,0.049247,41707.0,41696.0,0.37102366]
[1644087705410,0.6868303,41708.0,41696.0,0.37102366]
[1644087705615,0.049247,41707.0,41696.0,0.27102366]
[1644087705811,0.049247,41707.0,41696.0,0.37102366]
[1644087706813,0.049247,41707.0,41696.0,0.39256599]
[1644087707011,0.6868303,41708.0,41696.0,0.3731722]
[1644087707212,0.6868303,41708.0,41699.0,0.00067417]
[1644087707458,0.049247,41707.0,41699.0,0.00067417]
[1644087707658,0.097247,41707.0,41699.0,0.00067417]
[1644087708263,0.097247,41707.0,41696.0,0.3731722]
[1644087708459,0.048,41707.0,41701.0,0.00067416]
[1644087708661,0.049247,41706.0,41701.0,0.00067416]
[1644087708862,0.048,41705.0,41701.0,0.00067416]
[1644087709061,0.049247,41704.0,41701.0,0.00067416]
[1644087709461,0.049247,41704.0,41696.0,0.25162987]
[1644087709663,0.57402215,41708.0,41700.0,0.00067157]
[1644087709864,0.049247,41707.0,41700.0,0.00067157]
[1644087710264,0.048,41706.0,41700.0,0.00067157]
[1644087710464,0.049247,41705.0,41700.0,0.00067157]
[1644087710768,0.049247,41705.0,41695.0,0.02151667]
[1644087710965,0.049247,41705.0,41701.0,0.00067156]
[1644087711707,0.31567769,41704.0,41701.0,0.00067156]
[1644087711907,0.049247,41703.0,41696.0,0.20523166]
[1644087712107,0.049247,41703.0,41701.0,0.00067156]
[1644087712311,0.28944313,41702.0,41701.0,0.00067156]
[1644087712507,0.33913811,41702.0,41701.0,0.00067156]
[1644087712707,0.049247,41702.0,41701.0,0.00067156]
[1644087712908,0.36335964,41702.0,41701.0,0.00067156]
[1644087713109,0.36335964,41702.0,41696.0,0.01998249]
[1644087713317,0.08241777,41697.0,41696.0,0.01998249]
[1644087713510,0.49991783,41697.0,41696.0,0.01998249]
[1644087713710,0.49991783,41697.0,41696.0,8.249e-05]
[1644087713912,0.78853502,41697.0,41696.0,8.249e-05]
[1644087714109,1.14526087,41697.0,41696.0,8.249e-05]
[1644087714508,1.25806902,41697.0,41696.0,8.249e-05]
[1644087716158,1.17565125,41697.0,41696.0,8.249e-05]
[1644087716359,1.37565125,41697.0,41696.0,8.249e-05]
[1644087717360,1.17565125,41697.0,41696.0,8.249e-05]
[1644087718262,0.55020821,41697.0,41696.0,8.249e-05]
[1644087718464,0.117147,41697.0,41696.0,8.249e-05]
[1644087719122,0.62371314,41697.0,41696.0,8.249e-05]
[1644087719320,0.92699424,41697.0,41696.0,8.249e-05]
[1644087719720,1.04268554,41697.0,41694.0,0.00068055]
[1644087719922,0.049247,41696.0,41694.0,0.00068055]
[1644087720122,0.34825676,41695.0,41694.0,0.00068055]
[1644087720424,0.34825676,41695.0,41693.0,0.00067064]
[1644087720622,0.34715536,41694.0,41693.0,0.00067064]
[1644087720824,0.39515536,41694.0,41693.0,0.00067064]
[1644087721421,0.39515536,41694.0,41689.0,0.22663127]
[1644087721621,0.39515536,41694.0,41691.0,0.00067065]
[1644087722024,0.39515536,41694.0,41691.0,0.00054502]
[1644087722225,0.097247,41694.0,41691.0,0.00054502]
[1644087722661,0.097247,41694.0,41689.0,0.22663127]
[1644087722860,0.29249771,41693.0,41689.0,0.22663127]
[1644087723062,0.32753925,41696.0,41689.0,0.22663127]
[1644087723264,0.38013709,41697.0,41689.0,0.22663127]
[1644087723666,0.25663709,41697.0,41689.0,0.22663127]
[1644087725266,0.25663709,41697.0,41691.0,0.00067271]
[1644087725465,0.049247,41695.0,41691.0,0.00067271]
[1644087725664,0.048,41697.0,41691.0,0.00067271]
[1644087726237,0.049247,41700.0,41691.0,0.05]
[1644087726414,0.5129,41702.0,41691.0,0.05067272]
[1644087726715,0.1163,41702.0,41698.0,0.19778481]
[1644087726913,0.049247,41701.0,41698.0,0.19778481]
[1644087728818,0.049247,41701.0,41692.0,0.1]
[1644087729014,0.049247,41703.0,41692.0,0.1]
[1644087729214,0.049247,41703.0,41691.0,0.00067261]
[1644087729615,0.39581522,41700.0,41691.0,0.00067261]
[1644087729861,0.27563617,41698.0,41691.0,0.21895393]
[1644087730058,0.27563617,41698.0,41691.0,0.21962651]
[1644087730258,0.39581522,41700.0,41691.0,0.21962651]
[1644087730861,0.29400269,41699.0,41691.0,0.00067258]
[1644087731061,0.34390616,41699.0,41687.0,0.30542035]
[1644087731859,0.21817421,41695.0,41689.0,0.25963991]
[1644087732059,0.34390616,41699.0,41689.0,0.25963991]
[1644087732060,0.29465916,41699.0,41689.0,0.25963991]
[1644087732459,0.33491292,41703.0,41689.0,0.25963991]
[1644087733061,0.26867826,41700.0,41689.0,0.25963991]
[1644087733461,0.26867826,41700.0,41694.0,0.31116246]
[1644087733714,0.049247,41699.0,41694.0,0.31116246]
[1644087734220,0.049247,41699.0,41691.0,0.0006718]
[1644087734615,0.049247,41699.0,41691.0,0.05]
[1644087734815,0.049247,41699.0,41691.0,0.05069526]
[1644087735415,0.35470963,41703.0,41691.0,0.05069526]
[1644087735618,0.049247,41702.0,41691.0,0.05069526]
[1644087735817,0.049247,41702.0,41691.0,0.05]
[1644087736014,0.049247,41702.0,41691.0,0.05069527]
[1644087736215,0.049247,41702.0,41696.0,0.25906615]
[1644087736920,0.049247,41702.0,41695.0,0.40176041]
[1644087737965,0.049247,41702.0,41692.0,0.22605658]
[1644087738269,0.048,41701.0,41685.0,0.00027539]
[1644087738568,0.048,41701.0,41691.0,0.00066913]
[1644087738569,0.049247,41699.0,41691.0,0.00066913]
[1644087738768,0.048,41698.0,41691.0,0.00066913]
[1644087738968,0.35001396,41697.0,41691.0,0.00066913]
[1644087739166,0.23965211,41694.0,41691.0,0.00066913]
[1644087739369,0.049247,41692.0,41691.0,0.00066913]
[1644087739574,0.049247,41692.0,41682.0,0.00027539]
[1644087739769,0.049247,41692.0,41690.0,0.00066911]
[1644087739970,0.35205053,41691.0,41690.0,0.00066911]
[1644087740772,0.30280353,41691.0,41685.0,0.00027539]
[1644087740970,0.30280353,41691.0,41688.0,0.00066913]
[1644087740971,0.049247,41690.0,41688.0,0.00066913]
[1644087741814,0.048,41691.0,41685.0,0.00027539]
[1644087742017,0.048,41691.0,41687.0,0.00067091]
[1644087743017,0.048,41691.0,41685.0,0.00027539]
[1644087743217,0.048,41691.0,41687.0,0.00067091]
[1644087744215,0.048,41691.0,41685.0,0.00027539]
[1644087744516,0.048,41691.0,41687.0,0.00067091]
[1644087744721,0.048,41691.0,41687.0,0.00056279]
[1644087745557,0.048,41691.0,41685.0,0.00027539]
[1644087745757,0.048,41691.0,41684.0,0.55390578]
[1644087745957,0.048,41691.0,41685.0,0.00027539]
[1644087746157,0.048,41691.0,41684.0,0.55390578]
[1644087747458,0.048,41691.0,41684.0,0.57368645]
[1644087747658,0.048,41691.0,41684.0,0.23937853]
[1644087747859,0.048,41691.0,41684.0,0.01978067]
[1644087747860,0.33631891,41690.0,41684.0,0.01978067]
[1644087748461,0.048,41689.0,41684.0,0.01978067]
[1644087748718,0.049247,41688.0,41684.0,0.01978067]
[1644087748920,0.049247,41686.0,41684.0,0.01978067]
[1644087749119,0.39238398,41685.0,41679.0,0.02059584]
[1644087749319,0.097247,41685.0,41684.0,0.00070995]
[1644087750320,0.048,41685.0,41680.0,0.00027539]
[1644087750520,0.048,41685.0,41682.0,0.00070996]
[1644087750921,0.23562079,41684.0,41682.0,0.00070996]
[1644087751120,0.28362079,41684.0,41682.0,0.00070996]
[1644087751520,0.28362079,41684.0,41680.0,0.00027539]
[1644087751721,0.28362079,41684.0,41681.0,0.00070998]
[1644087752775,0.28362079,41684.0,41680.0,0.00027539]
[1644087752976,0.28334779,41684.0,41680.0,0.00070999]
[1644087753377,0.28334779,41684.0,41680.0,0.00098611]
[1644087753578,0.28334779,41684.0,41680.0,0.00070999]
[1644087754679,0.23534779,41684.0,41680.0,0.00070999]
[1644087755082,0.23534779,41684.0,41679.0,0.00027612]
[1644087755279,0.23534779,41684.0,41680.0,0.00070999]
[1644087755682,0.049247,41683.0,41680.0,0.00070999]
[1644087756309,0.049247,41683.0,41676.0,0.00027612]
[1644087756510,0.23534779,41684.0,41679.0,0.00045466]
[1644087757309,0.29848837,41685.0,41679.0,0.00045466]
[1644087757510,0.29848837,41685.0,41678.0,0.00027612]
[1644087757714,0.29848837,41685.0,41679.0,0.00070994]
[1644087758112,0.29661075,41685.0,41679.0,0.00070994]
[1644087758312,0.22496868,41683.0,41678.0,0.00027613]
[1644087758513,0.22496868,41683.0,41677.0,0.56567704]
[1644087759862,0.29661075,41685.0,41677.0,0.56567704]
[1644087760760,0.51390961,41685.0,41677.0,0.56567704]
[1644087761360,0.51390961,41685.0,41677.0,0.56613172]
[1644087761860,0.51390961,41685.0,41677.0,0.36861521]
[1644087762260,0.51390961,41685.0,41677.0,0.36816053]
[1644087762460,0.51390961,41685.0,41677.0,0.36887051]
[1644087763062,0.51390961,41685.0,41677.0,0.00070998]
[1644087763263,0.049247,41684.0,41677.0,0.00070998]
[1644087763463,0.049247,41684.0,41676.0,0.00027613]
[1644087763717,0.049247,41684.0,41675.0,0.0201883]
[1644087763920,0.43986081,41685.0,41675.0,0.0201883]
[1644087764120,0.1027651,41683.0,41675.0,0.0201883]
[1644087764318,0.29253878,41682.0,41675.0,0.0201883]
[1644087764518,0.048,41681.0,41679.0,0.33073385]
[1644087765423,0.048,41681.0,41676.0,0.2150211]
[1644087766220,0.048,41681.0,41676.0,0.21573053]
[1644087766420,0.048,41681.0,41678.0,0.05]
[1644087766823,0.048,41681.0,41679.0,0.36423451]
[1644087768273,0.115,41687.0,41679.0,0.36423451]
[1644087768471,0.049247,41686.0,41683.0,0.05]
[1644087768871,0.049247,41686.0,41679.0,0.36423451]
[1644087768872,0.594,41691.0,41680.0,0.05]
[1644087769070,0.5,41690.0,41680.0,0.05]
[1644087769270,0.049247,41689.0,41684.0,0.25053666]
[1644087770872,0.049247,41689.0,41683.0,0.05]
[1644087771119,0.049247,41689.0,41683.0,0.07161018]
[1644087771312,0.049247,41689.0,41683.0,0.02161018]
[1644087771812,0.37914087,41689.0,41680.0,0.05]
[1644087772013,0.37914087,41689.0,41682.0,0.26019091]
[1644087773416,0.37914087,41689.0,41683.0,0.05]
[1644087773616,0.37914087,41689.0,41682.0,0.26019091]
[1644087774420,0.87914087,41689.0,41682.0,0.26019091]
[1644087774620,0.82989387,41689.0,41682.0,0.26019091]
[1644087774863,0.049247,41688.0,41680.0,0.00027549]
[1644087775161,0.049247,41688.0,41679.0,0.43526974]
[1644087775361,0.049247,41688.0,41679.0,0.07103523]
[1644087775765,0.049247,41688.0,41679.0,0.34507567]
[1644087775961,0.049247,41688.0,41679.0,0.34535116]
[1644087776162,0.049247,41688.0,41679.0,0.34507567]
[1644087776362,0.25612107,41684.0,41679.0,0.02103523]
[1644087777262,0.25612107,41684.0,41677.0,0.000941]
[1644087777461,0.25612107,41684.0,41677.0,0.00066551]
[1644087777661,0.25612107,41684.0,41677.0,0.20282053]
[1644087778061,0.29187782,41687.0,41677.0,0.20215502]
[1644087778261,0.29187782,41687.0,41677.0,0.2028188]
[1644087779121,0.27439614,41685.0,41677.0,0.2028188]
[1644087779319,0.27439614,41685.0,41677.0,0.20215502]
[1644087779520,0.27439614,41685.0,41677.0,0.2027096]
[1644087780119,0.29187782,41687.0,41677.0,0.2027096]
[1644087780322,0.79187782,41687.0,41680.0,0.05]
[1644087780520,0.5,41687.0,41680.0,0.05]
[1644087780721,0.049247,41686.0,41680.0,0.05]
[1644087780919,0.5,41687.0,41680.0,0.05]
[1644087781124,0.499592,41687.0,41678.0,0.00016628]
[1644087781319,0.499592,41687.0,41677.0,0.2027096]
[1644087781720,0.499592,41687.0,41677.0,0.20204581]
[1644087781920,0.499592,41687.0,41677.0,0.20270972]
[1644087782363,0.499592,41687.0,41677.0,0.25270972]
[1644087782765,0.499592,41687.0,41677.0,0.25204581]
[1644087782964,0.499592,41687.0,41677.0,0.25270972]
[1644087783365,0.499592,41687.0,41677.0,0.25254344]
[1644087784064,0.499592,41687.0,41677.0,0.25187953]
[1644087784264,0.499592,41687.0,41677.0,0.25254344]
[1644087785265,0.499592,41687.0,41677.0,0.20187953]
[1644087786123,0.29508573,41686.0,41675.0,0.00016628]
[1644087786320,0.29508573,41686.0,41674.0,0.38827489]
[1644087786918,0.29508573,41686.0,41676.0,0.05]
[1644087787119,0.29508573,41686.0,41676.0,0.30676946]
[1644087787319,0.29508573,41686.0,41676.0,0.25676946]
[1644087787519,0.79008573,41686.0,41676.0,0.25676946]
[1644087787921,0.92629537,41686.0,41676.0,0.25676946]
[1644087788320,0.92629537,41686.0,41676.0,0.30676946]
[1644087789122,0.92629537,41686.0,41677.0,0.00070995]
[1644087789321,0.92629537,41686.0,41677.0,0.00087623]
[1644087789965,0.92629537,41686.0,41677.0,0.00016628]
[1644087790165,0.049247,41685.0,41677.0,0.00070995]
[1644087790366,0.63120964,41686.0,41677.0,0.00087623]
[1644087791264,0.63120964,41686.0,41677.0,0.00016628]
[1644087791471,0.63120964,41686.0,41677.0,0.00070995]
[1644087791665,0.63120964,41686.0,41677.0,0.00087623]
[1644087792467,0.63120964,41686.0,41677.0,0.00016628]
[1644087792765,0.63120964,41686.0,41677.0,0.00070995]
[1644087792966,0.63120964,41686.0,41677.0,0.00087623]
[1644087793716,0.63120964,41686.0,41677.0,0.00016628]
[1644087793916,0.63120964,41686.0,41677.0,0.00070995]
[1644087794121,0.63120964,41686.0,41677.0,0.00087623]
[1644087794318,0.049247,41685.0,41677.0,0.00087623]
[1644087794520,0.31101068,41684.0,41677.0,0.00070995]
[1644087794720,0.049247,41683.0,41677.0,0.00070995]
[1644087794919,0.048,41682.0,41673.0,0.00016628]
[1644087795122,0.20379216,41678.0,41677.0,0.00070995]
[1644087795321,0.25303916,41678.0,41677.0,0.00070995]
[1644087796120,0.25303916,41678.0,41673.0,0.00016628]
[1644087796319,0.20379216,41678.0,41675.0,0.00070995]
[1644087796519,0.049247,41677.0,41675.0,0.00070995]
[1644087797380,0.049247,41677.0,41674.0,0.00070997]
[1644087797579,0.6238,41681.0,41674.0,0.00070997]
[1644087797580,0.049247,41680.0,41674.0,0.00070997]
[1644087797779,0.097247,41680.0,41674.0,0.00070997]
[1644087798379,0.22327331,41678.0,41672.0,0.00016628]
[1644087798581,0.22327331,41678.0,41675.0,0.00070996]
[1644087798781,0.049247,41677.0,41675.0,0.00070996]
[1644087799579,0.049247,41677.0,41672.0,0.00016628]
[1644087799779,0.22327331,41678.0,41674.0,0.05067819]
[1644087799981,0.049247,41677.0,41674.0,0.00067819]
[1644087800781,0.049247,41677.0,41671.0,0.05]
[1644087800981,0.22327331,41678.0,41673.0,0.0006782]
[1644087801220,0.049247,41677.0,41673.0,0.0006782]
[1644087802122,0.22327331,41678.0,41672.0,0.00016628]
[1644087802321,0.049247,41677.0,41673.0,0.0006782]
[1644087802521,0.34982947,41677.0,41673.0,0.0006782]
[1644087803325,0.34982947,41677.0,41672.0,0.00016628]
[1644087803525,0.34982947,41677.0,41673.0,0.00070998]
[1644087804530,0.34982947,41677.0,41672.0,0.00016628]
[1644087804725,0.049247,41677.0,41673.0,0.00070998]
[1644087805776,0.22327331,41678.0,41672.0,0.00016628]
[1644087805979,0.049247,41677.0,41673.0,0.00070998]
[1644087806677,0.2942378,41676.0,41673.0,0.00070998]
[1644087806878,0.2942378,41676.0,41672.0,0.00016628]
[1644087806879,0.049247,41675.0,41672.0,0.00016628]
[1644087807081,0.049247,41675.0,41673.0,0.00070998]
[1644087808079,0.049247,41675.0,41672.0,0.00016628]
[1644087808280,0.049247,41675.0,41672.0,0.00070999]
[1644087808482,0.049247,41675.0,41672.0,0.00087627]
[1644087809119,0.13171199,41678.0,41672.0,0.00087627]
[1644087809315,0.5,41679.0,41672.0,0.00016628]
[1644087809515,0.5,41679.0,41671.0,0.39622726]
[1644087810516,0.22923463,41678.0,41671.0,0.39551727]
[1644087810717,0.22923463,41678.0,41673.0,0.00070998]
[1644087811117,0.049247,41677.0,41673.0,0.00070998]
[1644087811418,0.5,41679.0,41673.0,0.00070998]
[1644087811419,0.29593235,41680.0,41674.0,0.05]
[1644087811617,0.6238,41681.0,41674.0,0.05016628]
[1644087811817,0.049247,41680.0,41674.0,0.05]
[1644087812020,0.34049019,41680.0,41674.0,0.05]
[1644087812223,0.049247,41680.0,41674.0,0.05005179]
[1644087812470,0.20839363,41679.0,41674.0,0.05005179]
[1644087812670,0.049247,41678.0,41674.0,0.05005179]
[1644087813071,0.049247,41678.0,41674.0,0.05059547]
[1644087813873,0.049247,41678.0,41675.0,0.25238083]
[1644087814071,0.049247,41678.0,41675.0,0.00016628]
[1644087814276,0.049247,41678.0,41674.0,0.00070997]
[1644087814471,0.049247,41679.0,41674.0,0.00070997]
[1644087815272,0.049247,41679.0,41673.0,0.00016628]
[1644087815472,0.049247,41679.0,41674.0,0.00070996]
[1644087816322,0.049247,41679.0,41674.0,0.05059547]
[1644087816518,0.049247,41679.0,41674.0,0.04988551]
[1644087816819,0.049247,41679.0,41674.0,0.05059547]
[1644087817621,0.049247,41679.0,41674.0,0.04988551]
[1644087818024,0.049247,41679.0,41674.0,0.05059547]
[1644087818322,0.049247,41679.0,41674.0,0.00070996]
[1644087818923,0.049247,41679.0,41673.0,0.00016628]
[1644087819124,0.049247,41679.0,41674.0,0.00070996]
[1644087820172,0.049247,41679.0,41673.0,0.00016628]
[1644087820373,0.049247,41679.0,41674.0,0.00070996]
[1644087821373,0.049247,41679.0,41672.0,0.00016628]
[1644087821573,0.049247,41679.0,41674.0,0.00070996]
[1644087822479,0.049247,41679.0,41673.0,0.00016628]
[1644087822674,0.049247,41679.0,41674.0,0.00070996]
[1644087823618,0.049247,41679.0,41673.0,0.00016628]
[1644087823817,0.36843141,41681.0,41674.0,0.00070996]
[1644087824015,0.049247,41680.0,41674.0,0.00070996]
[1644087825019,0.049247,41680.0,41675.0,0.00070996]
[1644087826017,0.049247,41680.0,41673.0,0.00016628]
[1644087826316,0.049247,41680.0,41675.0,0.00070995]
[1644087827367,0.049247,41680.0,41674.0,0.00016628]
[1644087827573,0.00011449,41679.0,41675.0,0.00070995]